lending/lending_fUSD_20260124
["ID","MTS","AMOUNT","RATE_DAILY","PERIOD"]
[403180344,1769250641278,-1097.63046091,0.00016421,2]
[403180345,1769250641289,-1000.0,0.00016421,2]
[403180346,1769250641300,-502.78879497,0.00016421,2]
[403180347,1769250641311,-1005.95943746,0.00016421,2]
[403180348,1769250641321,-1000.0,0.00016421,2]
[403180349,1769250641331,-502.29589006,0.00016421,2]
[403180350,1769250641339,-1000.0,0.00016421,2]
[403180351,1769250641348,-1068.24864212,0.00016421,2]
[403180352,1769250641358,-502.47348302,0.00016421,2]
[403180353,1769250641367,-1000.0,0.00016421,2]
[403180354,1769250641376,-1000.0,0.00016421,2]
[403180355,1769250641385,-502.42566729,0.00016421,2]
[403180356,1769250641395,-1000.0,0.00016421,2]
[403180357,1769250641404,-1000.0,0.00016421,2]
[403180358,1769250641413,-1000.0,0.00016421,2]
[403180359,1769250641424,-1000.0,0.00016421,2]
[403180360,1769250641433,-1031.88,0.00016421,2]
[403180361,1769250641444,-707.51,0.00016425,2]
[403180362,1769250641454,-500.0,0.00016438,2]
[403180363,1769250641463,-500.0,0.00016438,2]
[403180364,1769250641473,-500.0,0.00016438,2]
[403180365,1769250641482,-500.0,0.00016438,2]
[403180366,1769250641491,-500.0,0.00016438,2]
[403180367,1769250641501,-500.0,0.00016438,2]
[403180368,1769250641510,-500.0,0.00016438,2]
[403180369,1769250641519,-237.2611018,0.00016438,2]
[403180370,1769250641529,-500.0,0.00016438,2]
[403180371,1769250641538,-500.0,0.00016438,2]
[403180372,1769250641547,-3012.0,0.00016438,2]
[403180373,1769250641557,-151.0,0.00016438,2]
[403180374,1769250641566,-500.0,0.00016521,2]
[403180375,1769250641577,-151.41,0.00016601,2]
[403180376,1769250641588,-500.0,0.00016658,2]
[403180377,1769250641597,-152.0,0.00016692,3]
[403180378,1769250641607,-1031.88,0.00016695,2]
[403180379,1769250641617,-166.61,0.00016712,2]
[403180380,1769250641629,-1740.06967272,0.00016741,2]
[403180381,1769250641640,-5187.28565398,0.00016741,2]
[403180382,1769250641649,-823.0,0.00016741,2]
[403180383,1769250641659,-250.0,0.00016757,2]
[403180384,1769250641670,-166.35,0.00016861,2]
[403180385,1769250641680,-3292.0,0.00016878,2]
[403180386,1769250641690,-580.49,0.00016889,2]
[403180387,1769250641700,-500.0,0.00016896,2]
[403180388,1769250641709,-854.43,0.00016922,2]
[403180389,1769250641719,-9999.99,0.00016922,2]
[403180390,1769250641727,-151.41,0.00016927,2]
[403180391,1769250641736,-1031.88,0.00016968,2]
[403180392,1769250641746,-1500.0,0.00016968,2]
[403180393,1769250641757,-1500.0,0.00016968,2]
[403180394,1769250641766,-1500.0,0.00016968,2]
[403180395,1769250641775,-1500.0,0.00016968,2]
[403180396,1769250641784,-1500.0,0.00016968,2]
[403180397,1769250641793,-1500.0,0.00016968,2]
[403180398,1769250641802,-1500.0,0.00016968,2]
[403180399,1769250641811,-1500.0,0.00016968,2]
[403180400,1769250641820,-1500.0,0.00016968,2]
[403180401,1769250641830,-500.0,0.00017,2]
[403180402,1769250641840,-516.11051232,0.00017,2]
[403180403,1769250641850,-250.0,0.00017,2]
[403180404,1769250641859,-557.0,0.00017074,2]
[403180405,1769250641868,-383.65677568,0.00017099,2]
[403180406,1769250641878,-339.25564708,0.00017099,2]
[403180407,1769250641887,-216.85110539,0.00017099,2]
[403180408,1769250641896,-377.94059275,0.00017099,2]
[403180409,1769250641905,-322.6107,0.00017099,2]
[403180410,1769250641914,-500.0,0.00017099,2]
[403180411,1769250641924,-500.0,0.00017099,2]
[403180412,1769250641935,-500.0,0.00017099,2]
[403180413,1769250641944,-500.0,0.00017099,2]
[403180414,1769250641954,-500.0,0.00017099,2]
[403180415,1769250641963,-500.0,0.00017099,2]
[403180416,1769250641973,-500.0,0.00017099,2]
[403180417,1769250641984,-209.40437684,0.00017099,2]
[403180418,1769250641998,-500.0,0.00017099,2]
[403180419,1769250642009,-500.0,0.00017099,2]
[403180420,1769250642020,-500.0,0.00017099,2]
[403180421,1769250642031,-500.0,0.00017099,2]
[403180422,1769250642041,-500.0,0.00017099,2]
[403180423,1769250642051,-500.0,0.00017099,2]
[403180424,1769250642061,-500.0,0.00017099,2]
[403180425,1769250642073,-500.0,0.00017099,2]
[403180426,1769250642084,-500.0,0.00017099,2]
[403180427,1769250642094,-500.0,0.00017099,2]
[403180428,1769250642103,-500.0,0.00017099,2]
[403180429,1769250642112,-500.0,0.00017099,2]
[403180430,1769250642122,-578.20924308,0.00017099,2]
[403180431,1769250642132,-500.0,0.00017099,2]
[403180432,1769250642141,-500.0,0.00017099,2]
[403180433,1769250642150,-500.0,0.00017099,2]
[403180434,1769250642159,-500.0,0.00017099,2]
[403180435,1769250642168,-500.0,0.00017099,2]
[403180436,1769250642177,-500.0,0.00017099,2]
[403180437,1769250642187,-500.0,0.00017099,2]
[403180438,1769250642196,-500.0,0.00017099,2]
[403180439,1769250642205,-500.0,0.00017099,2]
[403180440,1769250642214,-250.0,0.00017099,2]
[403180442,1769250642224,-500.0,0.00017099,2]
[403180444,1769250642233,-500.0,0.00017099,2]
[403180446,1769250642242,-250.0,0.00017099,2]
[403180448,1769250642253,-500.0,0.00017099,2]
[403180450,1769250642264,-500.0,0.00017099,2]
[403180451,1769250642273,-250.0,0.00017099,2]
[403180452,1769250642282,-500.0,0.00017099,2]
[403180453,1769250642291,-500.0,0.00017099,2]
[403180454,1769250642300,-250.0,0.00017099,2]
[403180455,1769250642309,-500.0,0.00017099,2]
[403180456,1769250642319,-250.0,0.00017099,2]
[403180457,1769250642329,-500.0,0.00017099,2]
[403180458,1769250642339,-250.0,0.00017099,2]
[403180459,1769250642348,-500.0,0.00017099,2]
[403180460,1769250642357,-250.0,0.00017099,2]
[403180461,1769250642367,-500.0,0.00017099,2]
[403180462,1769250642376,-250.0,0.00017099,2]
[403180463,1769250642387,-500.0,0.00017099,2]
[403180465,1769250642397,-174.61919141,0.00017099,2]
[403180467,1769250642407,-250.0,0.00017099,2]
[403180468,1769250642417,-500.0,0.00017099,2]
[403180469,1769250642427,-250.0,0.00017099,2]
[403180470,1769250642436,-500.0,0.00017099,2]
[403180471,1769250642446,-854.2589148,0.00017099,2]
[403180472,1769250642456,-500.0,0.00017099,2]
[403180474,1769250642465,-250.0,0.00017099,2]
[403180476,1769250642475,-500.0,0.00017099,2]
[403180477,1769250642486,-500.0,0.00017099,2]
[403180478,1769250642496,-250.0,0.00017099,2]
[403180479,1769250642505,-250.0,0.00017099,2]
[403180480,1769250642514,-250.0,0.00017099,2]
[403180481,1769250642524,-250.0,0.00017099,2]
[403180482,1769250642533,-250.0,0.00017099,2]
[403180483,1769250642542,-250.0,0.00017099,2]
[403180484,1769250642551,-250.0,0.00017099,2]
[403180485,1769250642562,-250.0,0.00017099,2]
[403180486,1769250642571,-250.0,0.00017099,2]
[403180487,1769250642583,-250.0,0.00017099,2]
[403180488,1769250642593,-250.0,0.00017099,2]
[403180489,1769250642604,-721.12765535,0.00017099,2]
[403180490,1769250642614,-743.50770149,0.00017099,2]
[403180491,1769250642624,-250.0,0.00017099,2]
[403180492,1769250642634,-250.0,0.00017099,2]
[403180493,1769250642643,-263.33008425,0.00017099,2]
[403180494,1769250642652,-151.0,0.00017099,2]
[403180495,1769250642661,-151.0,0.00017099,2]
[403180496,1769250642670,-151.0,0.00017099,2]
[403180497,1769250642679,-151.0,0.00017099,2]
[403180498,1769250642687,-250.0,0.00017099,2]
[403180499,1769250642697,-151.0,0.00017099,2]
[403180500,1769250642706,-250.0,0.00017099,2]
[403180501,1769250642715,-151.0,0.00017099,2]
[403180502,1769250642724,-250.0,0.00017099,2]
[403180503,1769250642733,-151.0,0.00017099,2]
[403180504,1769250642742,-250.0,0.00017099,2]
[403180505,1769250642751,-151.0,0.00017099,2]
[403180506,1769250642760,-250.0,0.00017099,2]
[403180507,1769250642768,-151.0,0.00017099,2]
[403180508,1769250642777,-266.11006595,0.00017099,2]
[403180509,1769250642786,-151.0,0.00017099,2]
[403180510,1769250642795,-151.0,0.00017099,2]
[403180511,1769250642804,-158.81404097,0.00017164,2]
[403180512,1769250642813,-1000.0,0.000172,2]
[403180513,1769250642822,-151.0,0.00017211,2]
[403180514,1769250642831,-557.0,0.00017217,2]
[403180515,1769250642840,-196.03,0.00017241,2]
[403180516,1769250642849,-1031.88,0.00017242,2]
[403180517,1769250642858,-1000.0,0.0001726,2]
[403180518,1769250642870,-151.0,0.0001729,2]
[403180519,1769250642880,-4236.06670475,0.00017293,2]
[403180520,1769250642890,-1740.06967272,0.0001732,2]
[403180521,1769250642902,-5187.28565398,0.0001732,2]
[403180522,1769250642911,-151.0,0.00017369,2]
[403180523,1769250642922,-151.0,0.00017448,2]
[403180524,1769250642931,-580.49,0.00017499,2]
[403180525,1769250642941,-1031.88,0.00017516,2]
[403180526,1769250642950,-1946.80273923,0.00017516,2]
[403180527,1769250642959,-996.44360934,0.00017516,2]
[403180528,1769250642968,-2000.0,0.00017516,2]
[403180529,1769250642979,-2000.0,0.00017516,2]
[403180530,1769250642989,-2000.0,0.00017516,2]
[403180531,1769250643001,-2000.0,0.00017516,2]
[403180532,1769250643011,-2000.0,0.00017516,2]
[403180533,1769250643020,-2000.0,0.00017516,2]
[403180534,1769250643030,-2000.0,0.00017516,2]
[403180535,1769250643041,-151.0,0.00017527,2]
[403180536,1769250643051,-1000.0,0.00017534,2]
[403180537,1769250643067,-935.0,0.00017557,2]
[403180538,1769250643077,-200.0,0.00017559,2]
[403180539,1769250643086,-1000.0,0.000176,2]
[403180540,1769250643095,-151.0,0.00017605,2]
[403180541,1769250643104,-1569.90652218,0.0001764,2]
[403180542,1769250643114,-217.15233878,0.00017647,2]
[403180543,1769250643124,-181.08010149,0.00017647,2]
[403180544,1769250643134,-885.86649465,0.00017647,2]
[403180545,1769250643144,-323.07684382,0.00017647,2]
[403180546,1769250643156,-151.0,0.00017684,2]
[403180547,1769250643165,-150.0,0.00017699,2]
[403180548,1769250643174,-150.0,0.00017699,2]
[403180549,1769250643183,-150.0,0.00017699,2]
[403180550,1769250643192,-150.0,0.00017699,2]
[403180551,1769250643201,-150.0,0.00017699,2]
[403180552,1769250643210,-500.0,0.00017699,2]
[403180553,1769250643221,-150.0,0.00017699,2]
[403180554,1769250643232,-198.56508977,0.00017699,2]
[403180555,1769250643242,-150.0,0.00017699,2]
[403180556,1769250643254,-150.0,0.00017699,2]
[403180557,1769250643263,-500.0,0.00017699,2]
[403180558,1769250643274,-500.0,0.00017699,2]
[403180559,1769250643284,-158.58448386,0.00017699,2]
[403180560,1769250643294,-165.34958219,0.00017699,2]
[403180561,1769250643304,-500.0,0.00017699,2]
[403180562,1769250643315,-500.0,0.00017699,2]
[403180563,1769250643325,-500.0,0.00017699,2]
[403180564,1769250643335,-500.0,0.00017699,2]
[403180565,1769250643346,-500.0,0.00017699,2]
[403180566,1769250643356,-150.0,0.00017699,2]
[403180567,1769250643365,-150.0,0.00017699,2]
[403180568,1769250643376,-500.0,0.00017699,2]
[403180569,1769250643386,-261.52649644,0.00017699,2]
[403180570,1769250643396,-150.0,0.00017699,2]
[403180571,1769250643405,-150.0,0.00017699,2]
[403180572,1769250643414,-150.0,0.00017699,2]
[403180573,1769250643423,-150.0,0.00017699,2]
[403180574,1769250643435,-214.96623226,0.00017718,2]
[403180575,1769250643445,-500.0,0.00017727,2]
[403180576,1769250643716,-37000.92,0.00017728,2]
[403180577,1769250643728,-150.99,0.00017728,2]
[403180578,1769250643739,-9999.99,0.00017728,2]
[403180579,1769250643748,-182.74,0.00017728,2]
[403180580,1769250643759,-1000.0,0.00017736,2]
[403180581,1769250643768,-500.0,0.00017754,2]
[403180582,1769250643778,-215.96483373,0.00017754,2]
[403180583,1769250643788,-500.0,0.00017754,2]
[403180584,1769250643799,-500.0,0.00017754,2]
[403180585,1769250643808,-500.0,0.00017754,2]
[403180586,1769250643818,-500.0,0.00017754,2]
[403180587,1769250643828,-500.0,0.00017754,2]
[403180588,1769250643837,-500.0,0.00017754,2]
[403180589,1769250643848,-500.0,0.00017754,2]
[403180590,1769250643858,-500.0,0.00017754,2]
[403180591,1769250643867,-150.0,0.00017754,2]
[403180592,1769250643878,-150.0,0.00017754,2]
[403180593,1769250643887,-175.63030324,0.00017754,2]
[403180594,1769250643897,-151.0,0.00017763,2]
[403180595,1769250643906,-200.0,0.00017771,2]
[403180596,1769250643915,-1000.0,0.00017782,2]
[403180597,1769250643927,-1031.92,0.0001779,2]
[403180598,1769250643936,-150.0,0.00017792,2]
[403180599,1769250643945,-1000.0,0.00017795,2]
[403180600,1769250643954,-1000.0,0.00017799,2]
[403180601,1769250643963,-1000.0,0.000178,2]
[403180602,1769250643972,-1000.0,0.00017808,2]
[403180603,1769250643982,-500.0,0.00017809,2]
[403180604,1769250643994,-500.0,0.00017809,2]
[403180605,1769250644003,-350.0,0.00017809,2]
[403180606,1769250644012,-500.0,0.00017809,2]
[403180607,1769250644021,-153.21260792,0.00017809,2]
[403180608,1769250644030,-500.0,0.00017809,2]
[403180609,1769250644039,-500.0,0.00017809,2]
[403180610,1769250644049,-500.0,0.00017809,2]
[403180611,1769250644058,-500.0,0.00017809,2]
[403180612,1769250644068,-200.0,0.00017809,2]
[403180613,1769250644077,-150.0,0.00017809,2]
[403180614,1769250644086,-150.0,0.00017813,2]
[403180615,1769250644095,-152.0,0.00017815,4]
[403180616,1769250644109,-150.0,0.00017815,2]
[403180617,1769250644118,-838.65935,0.0001782,2]
[403180618,1769250644128,-838.65936,0.0001782,2]
[403180619,1769250644137,-1000.0,0.00017823,2]
[403180620,1769250644147,-150.0,0.00017829,2]
[403180621,1769250644156,-1000.0,0.00017833,2]
[403180622,1769250644167,-151.0,0.00017842,2]
[403180623,1769250644177,-150.0,0.00017844,2]
[403180624,1769250644187,-1000.0,0.00017851,2]
[403180625,1769250644196,-200.0,0.00017856,2]
[403180626,1769250644206,-200.0,0.00017857,2]
[403180627,1769250644215,-1000.0,0.00017858,2]
[403180628,1769250644224,-158.44649429,0.00017863,2]
[403180629,1769250644234,-500.0,0.00017863,2]
[403180630,1769250644244,-500.0,0.00017863,2]
[403180631,1769250644254,-500.0,0.00017863,2]
[403180632,1769250644264,-500.0,0.00017863,2]
[403180633,1769250644274,-500.0,0.00017863,2]
[403180634,1769250644284,-500.0,0.00017863,2]
[403180635,1769250644295,-150.0,0.00017863,2]
[403180636,1769250644304,-1000.0,0.00017864,2]
[403180637,1769250644315,-204.97504573,0.00017871,2]
[403180638,1769250644327,-200.0,0.00017891,2]
[403180639,1769250644336,-174.20823838,0.000179,2]
[403180640,1769250644346,-7740.619,0.000179,2]
[403180641,1769250644356,-1740.06967272,0.000179,2]
[403180642,1769250644365,-5187.28565398,0.000179,2]
[403180643,1769250644376,-22063.9447249,0.000179,2]
[403180644,1769250644386,-4193.0,0.000179,2]
[403180645,1769250644396,-6602.1717927,0.00017907,2]
[403180646,1769250644405,-1000.0,0.00017913,2]
[403180647,1769250644415,-500.0,0.00017918,2]
[403180648,1769250644425,-500.0,0.00017918,2]
[403180649,1769250644435,-458.7610726,0.00017918,2]
[403180650,1769250644445,-500.0,0.00017918,2]
[403180651,1769250644455,-500.0,0.00017918,2]
[403180652,1769250644465,-551.35617577,0.00017918,2]
[403180653,1769250644475,-290.22964713,0.00017918,2]
[403180654,1769250644485,-1000.0,0.0001792,2]
[403180655,1769250644495,-151.0,0.00017921,2]
[403180656,1769250644505,-1000.0,0.00017923,2]
[403180657,1769250644514,-2616.0,0.00017932,2]
[403180658,1769250644524,-1000.0,0.00017936,2]
[403180659,1769250644533,-150.0,0.00017968,2]
[403180660,1769250644543,-500.0,0.0001797,2]
[403180661,1769250644553,-500.0,0.0001797,2]
[403180662,1769250644562,-500.0,0.0001797,2]
[403180663,1769250644572,-700.0,0.0001797,2]
[403180664,1769250644582,-500.0,0.0001797,2]
[403180665,1769250644592,-700.0,0.0001797,2]
[403180666,1769250644602,-500.0,0.0001797,2]
[403180667,1769250644613,-700.0,0.0001797,2]
[403180668,1769250644623,-700.0,0.0001797,2]
[403180669,1769250644634,-700.0,0.0001797,2]
[403180670,1769250644645,-700.0,0.0001797,2]
[403180671,1769250644655,-1100.0,0.0001797,2]
[403180672,1769250644665,-200.0,0.00017971,2]
[403180673,1769250644675,-178.05953076,0.00017973,2]
[403180674,1769250644684,-501.96776768,0.00017973,2]
[403180675,1769250644694,-500.43979477,0.00017973,2]
[403180676,1769250644703,-150.0,0.00017973,2]
[403180677,1769250644713,-500.0,0.00017973,2]
[403180678,1769250644722,-500.0,0.00017973,2]
[403180679,1769250644731,-500.0,0.00017973,2]
[403180680,1769250644740,-501.90117021,0.00017973,2]
[403180681,1769250644750,-500.34685322,0.00017973,2]
[403180682,1769250644759,-501.2562389,0.00017973,2]
[403180683,1769250644768,-500.0,0.00017973,2]
[403180684,1769250644777,-502.02546222,0.00017973,2]
[403180685,1769250644787,-501.68829632,0.00017973,2]
[403180686,1769250644796,-160.03828545,0.00017973,2]
[403180687,1769250644806,-500.0,0.00017973,2]
[403180688,1769250644815,-574.71375417,0.00017973,2]
[403180689,1769250644824,-502.21809292,0.00017973,2]
[403180690,1769250644834,-500.0,0.00017973,2]
[403180691,1769250644842,-500.0,0.00017973,2]
[403180692,1769250644851,-247.26659948,0.00017973,2]
[403180693,1769250644861,-500.0,0.00017973,2]
[403180694,1769250644870,-500.0,0.00017973,2]
[403180695,1769250644879,-500.0,0.00017973,2]
[403180696,1769250644888,-500.0,0.00017973,2]
[403180697,1769250644898,-165.80280518,0.00017973,2]
[403180698,1769250644908,-240.81706826,0.00017973,2]
[403180699,1769250644917,-193.25248034,0.00017973,2]
[403180700,1769250644927,-1000.0,0.00017973,2]
[403180701,1769250644936,-1000.0,0.00017973,2]
[403180702,1769250644945,-1000.0,0.00017973,2]
[403180703,1769250644956,-500.0,0.00017973,2]
[403180704,1769250644966,-150.0,0.00017973,2]
[403180705,1769250644975,-500.0,0.00017982,2]
[403180706,1769250644984,-1000.0,0.00017985,2]
[403180707,1769250644997,-915.6693984,0.0001799,2]
[403180708,1769250645006,-214.96623226,0.0001799,2]
[403180709,1769250645016,-214.96623226,0.0001799,2]
[403180710,1769250645025,-153.7074367,0.00017995,2]
[403180711,1769250645036,-500.0,0.00017997,2]
[403180712,1769250645045,-150.0,0.00017997,2]
[403180713,1769250645054,-151.0,0.00017997,2]
[403180714,1769250645064,-249.48172896,0.00017999,2]
[403180715,1769250645074,-155.0,0.00017999,2]
[403180716,1769250645083,-31044.4634065,0.00017999,2]
[403180717,1769250645092,-1050.88046112,0.00017999,5]
[403180718,1769250645102,-500.0,0.00017999,2]
[403180719,1769250645111,-500.0,0.00017999,2]
[403180720,1769250645121,-500.0,0.00017999,2]
[403180721,1769250645131,-500.0,0.00017999,2]
[403180722,1769250645140,-500.0,0.00017999,2]
[403180723,1769250645150,-500.0,0.00017999,2]
[403180724,1769250645160,-500.0,0.00017999,2]
[403180726,1769250645170,-500.0,0.00017999,2]
[403180728,1769250645179,-500.0,0.00017999,2]
[403180730,1769250645189,-500.0,0.00017999,2]
[403180732,1769250645198,-279.88786279,0.00017999,2]
[403180733,1769250645207,-500.0,0.00017999,2]
[403180734,1769250645216,-500.0,0.00017999,2]
[403180735,1769250645225,-500.0,0.00017999,2]
[403180736,1769250645234,-500.0,0.00017999,2]
[403180737,1769250645243,-500.0,0.00017999,2]
[403180738,1769250645252,-500.0,0.00017999,2]
[403180739,1769250645261,-500.0,0.00017999,2]
[403180740,1769250645270,-500.0,0.00017999,2]
[403180741,1769250645279,-311.60217601,0.00017999,2]
[403180742,1769250645289,-13686.32468372,0.00017999,2]
[403180743,1769250645298,-300.0,0.00017999,2]
[403180744,1769250645307,-150.0,0.00017999,2]
[403180745,1769250645317,-150.0,0.00017999,2]
[403180746,1769250645326,-552551.10471222,0.00018,2]
[403180748,1769250645336,-419.73041029,0.00018,2]
[403180750,1769250645346,-419.73041029,0.00018,2]
[403180751,1769250645356,-419.73041028,0.00018,2]
[403180752,1769250645366,-419.73041028,0.00018,2]
[403180753,1769250645376,-419.73041028,0.00018,2]
[403180754,1769250645385,-419.73041028,0.00018,2]
[403180755,1769250645394,-419.73041028,0.00018,2]
[403180756,1769250645404,-419.73041028,0.00018,2]
[403180757,1769250645413,-419.73041028,0.00018,2]
[403180758,1769250645422,-419.73041028,0.00018,2]
[403180759,1769250645432,-419.73041028,0.00018,2]
[403180760,1769250645443,-419.73041028,0.00018,2]
[403180761,1769250645452,-419.73041028,0.00018,2]
[403180762,1769250645462,-419.73041028,0.00018,2]
[403180763,1769250645471,-419.73041028,0.00018,2]
[403180764,1769250645482,-419.73041028,0.00018,2]
[403180765,1769250645493,-419.73041028,0.00018,2]
[403180766,1769250645503,-419.73041028,0.00018,2]
[403180767,1769250645513,-419.73041028,0.00018,2]
[403180768,1769250645523,-419.73041028,0.00018,2]
[403180769,1769250645533,-1000.0,0.00018,2]
[403180770,1769250645543,-1000.0,0.00018,2]
[403180771,1769250645552,-1000.0,0.00018,2]
[403180772,1769250645561,-1000.0,0.00018,2]
[403180773,1769250645570,-1000.0,0.00018,2]
[403180774,1769250645579,-1000.0,0.00018,2]
[403180775,1769250645588,-308.48884427,0.00018,2]
[403180776,1769250645597,-151.0,0.00018,2]
[403180777,1769250645606,-5099316.74998134,0.00018,2]
[403180778,1769250646134,-1620.0569502,0.00018,2]
[403180779,1769250646535,-1.7e-07,0.00018,2]
[403180780,1769250646606,-321212.4218085,0.00018,2]
[403180781,1769250646617,-6641.0542237,0.00018,2]
[403180782,1769250646631,-1463.86270582,0.00018,2]
[403180783,1769250647139,-447.70520392,0.00018,2]
[403180784,1769250661804,-573.53951108,0.00012582,2]
[403180785,1769250690142,-158.61901442,0.00012582,2]
[403180786,1769250692020,-391.00533512,0.00012582,2]
[403180787,1769250692398,2115.078,0.0001233,2]
[403180788,1769250692433,163.029,0.0001233,2]
[403180789,1769250697293,-268.17757971,0.00012582,2]
[403180790,1769250697476,1044.04180365,0.00012482,2]
[403180791,1769250756852,6677.86119635,0.00012482,2]
[403180792,1769250756876,1364.03946713,0.00012482,2]
[403180793,1769250780178,291.52768836,0.00012482,2]
[403180794,1769250781679,300.0,0.00012581,2]
[403180795,1769250782460,150.0,0.00012581,2]
[403180796,1769250783100,246.0,0.00012581,2]
[403180797,1769250786488,280.21049292,0.00012581,2]
[403180798,1769250794425,300.0,0.00012581,2]
[403180799,1769250798891,282.1585255,0.00012482,2]
[403180800,1769250800785,1200.0,0.00012581,2]
[403180801,1769250801689,500.0,0.00012581,2]
[403180802,1769250801738,500.0,0.00012581,2]
[403180803,1769250801802,499.99999999,0.00012581,2]
[403180804,1769250810652,308.47292992,0.00012482,2]
[403180805,1769250813950,251.49356751,0.00012581,2]
[403180806,1769250822975,500.0,0.00012581,2]
[403180807,1769250823020,500.0,0.00012581,2]
[403180808,1769250823077,325.51617714,0.00012581,2]
[403180809,1769250830694,152.57821328,0.00012581,2]
[403180810,1769250847291,245.07989492,0.00012581,2]
[403180811,1769250863989,152.13538667,0.00012482,2]
[403180812,1769250878174,504.55998909,0.00012581,2]
[403180813,1769250901173,1146.23766757,0.00012581,2]
[403180814,1769250901196,53.76233243,0.00012581,2]
[403180815,1769250931222,500.0,0.00012581,2]
[403180816,1769250931284,500.0,0.00012581,2]
[403180817,1769250931327,500.0,0.00012581,2]
[403180818,1769250931373,581.67608,0.00012581,2]
[403180819,1769250931421,500.0,0.00012581,2]
[403180820,1769250931465,500.0,0.00012581,2]
[403180821,1769250931515,500.0,0.00012581,2]
[403180822,1769250931555,500.0,0.00012581,2]
[403180823,1769250931601,500.0,0.00012581,2]
[403180824,1769250944346,189.78252169,0.00012581,2]
[403180825,1769250949449,500.0,0.00012581,2]
[403180826,1769250949498,500.0,0.00012581,2]
[403180827,1769250949559,500.0,0.00012581,2]
[403180828,1769250949611,500.0,0.00012581,2]
[403180829,1769250949668,500.0,0.00012581,2]
[403180830,1769250949716,597.42052527,0.00012581,2]
[403180831,1769250961603,300.0,0.00012581,2]
[403180832,1769250961661,300.0,0.00012581,2]
[403180833,1769250962930,150.0,0.00012581,2]
[403180834,1769250965897,205.64861994,0.00012482,2]
[403180835,1769250975518,300.0,0.00012581,2]
[403180836,1769250978692,1050.88046112,0.00012581,3]
[403180837,1769251020915,249.23207042,0.00012482,2]
[403180838,1769251021251,300.0,0.00012581,2]
[403180839,1769251025422,200.0,0.00012582,2]
[403180840,1769251025523,72.48785025,0.00012582,2]
[403180841,1769251025549,427.51214975,0.00012582,2]
[403180842,1769251026640,170.26622743,0.00012582,2]
[403180843,1769251026740,334.33697893,0.00012582,2]
[403180844,1769251032559,151.0,0.00012582,2]
[403180845,1769251033487,151.0,0.00012582,2]
[403180846,1769251033668,1944.65565276,0.000125,2]
[403180847,1769251034212,151.0,0.00012582,2]
[403180848,1769251034808,151.0,0.00012582,2]
[403180849,1769251035400,151.0,0.00012582,2]
[403180850,1769251036504,151.0,0.00012582,2]
[403180851,1769251037182,151.0,0.00012582,2]
[403180852,1769251037803,151.0,0.00012582,2]
[403180853,1769251038415,151.0,0.00012582,2]
[403180854,1769251039139,151.0,0.00012582,2]
[403180855,1769251039875,151.0,0.00012582,2]
[403180856,1769251040770,151.0,0.00012582,2]
[403180857,1769251041973,-151.0,0.00012582,2]
[403180858,1769251042006,-151.0,0.00012582,2]